bitfinex/quotes_SOLUSD_20250207
["timestamp","ask_amount","ask_price","bid_price","bid_amount"]
[1738912286682,0.03,192.05,192.03,20.25098]
[1738912287187,0.03,192.05,192.04,20.0]
[1738912288118,0.03,192.05,192.03,0.25098]
[1738912288411,0.03,192.05,192.04,20.50196]
[1738912288594,0.03,192.05,192.04,53.51991357]
[1738912289503,0.03,192.05,192.04,58.72711357]
[1738912289815,0.03,192.05,192.04,39.12100853]
[1738912291421,0.03,192.05,192.04,58.72711357]
[1738912292696,0.03,192.05,192.04,39.12100853]
[1738912294916,0.03,192.05,192.04,5.45818]
[1738912295111,0.03,192.05,192.04,39.12100853]
[1738912295626,0.03,192.08,192.07,20.50196]
[1738912295931,0.03,192.08,192.07,54.30060999]
[1738912296801,0.03,192.08,192.07,39.12020853]
[1738912297001,0.03,192.08,192.07,5.45738]
[1738912297402,0.03,192.08,192.07,25.45738]
[1738912297715,0.03,192.08,192.07,38.86922853]
[1738912299095,0.03,192.08,192.07,39.12020853]
[1738912299299,0.03,192.08,192.07,38.86922853]
[1738912299822,0.03,192.08,192.07,38.99471853]
[1738912300117,0.03,192.08,192.07,39.12020853]
[1738912302921,0.03,192.08,192.07,38.99471853]
[1738912304103,0.03,192.08,192.07,20.25098]
[1738912305598,0.03,192.08,192.03,0.063]
[1738912305802,19.60610504,192.06,192.03,0.063]
[1738912306016,19.60610504,192.06,192.03,0.31398]
[1738912306326,0.03,192.08,192.03,0.31398]
[1738912306327,19.60610504,192.07,192.03,0.31398]
[1738912306817,0.03,192.08,192.03,18.93302853]
[1738912307018,0.03,192.08,192.03,38.53913357]
[1738912307222,0.03,192.08,192.03,18.93302853]
[1738912307718,0.03,192.08,192.05,13.41184853]
[1738912307916,0.03,192.08,192.06,0.25098]
[1738912308102,0.03,192.08,192.07,13.78831853]
[1738912309231,0.03,192.08,192.07,18.99471853]
[1738912310013,0.03,192.08,192.07,19.12020853]
[1738912314935,0.0001,192.08,192.07,39.72631357]
[1738912315227,1.6174,192.16,192.12,13.41184853]
[1738912316434,1.57763286,192.16,192.12,13.41184853]
[1738912317427,1.57763286,192.16,192.12,18.61674853]
[1738912318128,19.60610504,192.14,192.1,5.2055]
[1738912318320,19.60610504,192.13,192.1,25.2055]
[1738912318521,19.60610504,192.13,192.1,20.0]
[1738912318722,19.60610504,192.13,192.07,9.3462]
[1738912318921,19.60610504,192.13,192.08,13.66282853]
[1738912319326,19.60610504,192.12,192.08,13.66282853]
[1738912319526,19.60610504,192.12,192.08,18.86892853]
[1738912319920,19.60610504,192.14,192.08,18.86892853]
[1738912320234,19.60610504,192.14,192.11,20.0]
[1738912320410,1.57763286,192.16,192.12,0.12549]
[1738912320607,21.1837379,192.16,192.12,0.12549]
[1738912320932,19.60610504,192.15,192.13,0.12549]
[1738912321234,21.1837379,192.16,192.13,0.12549]
[1738912321614,19.60610504,192.15,192.13,0.12549]
[1738912322223,21.1837379,192.16,192.13,0.12549]
[1738912323835,19.60610504,192.14,192.08,5.2061]
[1738912324031,19.60610504,192.11,192.04,24.81330504]
[1738912324210,19.60610504,192.11,192.05,4.14]
[1738912324629,19.60610504,192.11,192.07,20.0]
[1738912324830,19.60610504,192.1,192.06,0.25098]
[1738912325417,19.60610504,192.11,192.06,5.45758]
[1738912326234,19.60610504,192.11,192.06,0.25098]
[1738912326431,19.60610504,192.1,192.06,0.25098]
[1738912327033,19.60610504,192.08,192.06,0.25098]
[1738912327217,19.60610504,192.08,192.03,0.063]
[1738912327421,19.60610504,192.07,192.03,0.063]
[1738912327728,4.6845,192.12,192.03,0.31398]
[1738912327729,19.60610504,192.08,192.03,0.31398]
[1738912328630,19.60610504,192.09,192.03,13.72582853]
[1738912329423,19.60610504,192.09,192.03,18.93322853]
[1738912332135,19.60610504,192.08,192.03,18.93322853]
[1738912332733,19.60610504,192.07,192.03,0.31398]
[1738912333634,19.60610504,192.08,192.03,0.31398]
[1738912334018,19.60610504,192.07,192.03,0.31398]
[1738912335927,4.6856,192.08,192.03,0.31398]
[1738912335928,19.60610504,192.08,192.03,0.31398]
[1738912336335,19.60610504,192.08,192.03,5.52138]
[1738912337642,19.60610504,192.08,192.03,18.93322853]
[1738912337844,24.29160504,192.08,192.03,0.31398]
[1738912339139,19.60610504,192.08,192.03,18.93312853]
[1738912340329,19.60610504,192.09,192.03,18.93312853]
[1738912340726,12.5001887,192.12,192.04,26.41399723]
[1738912341046,12.5001887,192.12,192.06,13.66282853]
[1738912341848,12.5001887,192.12,192.05,0.25098]
[1738912342053,12.5001887,192.12,192.06,5.2067]
[1738912342530,12.5001887,192.11,192.06,5.2067]
[1738912343743,12.5001887,192.12,192.07,5.45708]
[1738912343955,12.5001887,192.13,192.07,5.45708]
[1738912344245,12.5001887,192.13,192.08,13.41184853]
[1738912344450,14.10782156,192.16,192.09,0.25098]
[1738912344843,12.5001887,192.15,192.09,0.25098]
[1738912345240,12.5001887,192.14,192.09,0.25098]
[1738912345642,12.5001887,192.15,192.09,0.25098]
[1738912346037,12.5001887,192.13,192.08,5.2059]
[1738912346232,12.5001887,192.12,192.08,5.2059]
[1738912346549,12.5001887,192.12,192.09,0.25098]
[1738912346853,19.52445587,192.13,192.09,0.25098]
[1738912348248,19.52445587,192.13,192.1,0.25098]
[1738912350150,1.60763286,192.16,192.1,0.25098]
[1738912350151,19.52445587,192.14,192.1,5.45658]
[1738912350735,19.52445587,192.15,192.1,5.45658]
[1738912352259,19.52445587,192.14,192.1,5.45658]
[1738912352446,19.52445587,192.13,192.1,5.45658]
[1738912352957,19.52445587,192.14,192.1,5.45658]
[1738912353854,19.52445587,192.14,192.1,0.25098]
[1738912354853,19.52445587,192.14,192.1,5.51948]
[1738912355049,19.52445587,192.13,192.1,5.51948]
[1738912355240,19.52445587,192.14,192.1,5.51948]
[1738912356960,0.03,192.16,192.12,0.25098]
[1738912357156,19.55445587,192.16,192.12,0.25098]
[1738912358957,0.03,192.16,192.13,0.25098]
[1738912359163,19.55445587,192.16,192.13,0.25098]
[1738912360164,0.03,192.16,192.13,0.25098]
[1738912360357,0.03,192.16,192.13,13.66282853]
[1738912360667,0.03,192.16,192.14,0.12549]
[1738912361063,0.03,192.16,192.15,18.86702853]
[1738912363178,0.03,192.16,192.15,38.6424644]
[1738912367171,0.0001,192.16,192.15,38.6424644]
[1738912367353,0.0001,192.16,192.15,39.6424644]
[1738912367549,0.0001,192.16,192.15,38.6424644]
[1738912368645,0.0001,192.16,192.15,31.59659153]
[1738912369249,0.0001,192.16,192.15,32.59659153]
[1738912369668,0.0001,192.16,192.15,31.59659153]
[1738912370176,0.0001,192.16,192.15,32.59659153]
[1738912370878,0.0001,192.16,192.15,31.59659153]
[1738912371180,0.0001,192.16,192.15,32.59659153]
[1738912373294,0.0001,192.16,192.15,31.59659153]
[1738912373574,0.0001,192.16,192.15,18.99251853]
[1738912373771,0.0001,192.16,192.15,18.86702853]
[1738912374278,0.0001,192.16,192.15,0.25098]
[1738912374454,0.0001,192.16,192.15,20.25098]
[1738912374656,0.0001,192.16,192.15,0.25098]
[1738912375756,0.0001,192.16,192.13,5.2045]
[1738912375980,0.0001,192.16,192.13,20.0]
[1738912376155,0.0001,192.16,192.14,0.25098]
[1738912378898,12.478583,192.15,192.1,0.063]
[1738912379067,12.478583,192.13,192.1,0.063]
[1738912379273,12.478583,192.12,192.1,0.063]
[1738912379789,12.478583,192.11,192.1,0.063]
[1738912380699,12.478583,192.12,192.1,0.063]
[1738912381963,14.012083,192.13,192.1,0.063]
[1738912382167,12.478583,192.12,192.1,0.063]
[1738912382900,14.012083,192.13,192.1,0.063]
[1738912383070,1.5335,192.13,192.1,5.2686]
[1738912383389,12.478583,192.15,192.11,0.25098]
[1738912385370,12.478583,192.15,192.11,5.45608]
[1738912386070,12.478683,192.16,192.11,5.45608]
[1738912386400,0.0001,192.16,192.11,5.45608]
[1738912386599,12.478683,192.16,192.11,5.45608]
[1738912387890,0.0001,192.16,192.13,0.25098]
[1738912389589,0.0001,192.16,192.13,5.45568]
[1738912392401,0.0001,192.16,192.13,0.25098]
[1738912392704,12.478583,192.14,192.1,5.2686]
[1738912392904,12.478583,192.11,192.1,0.063]
[1738912393782,13.26043739,192.11,192.1,0.063]
[1738912393980,12.478583,192.11,192.1,0.063]
[1738912394291,13.26043739,192.11,192.1,0.063]
[1738912394590,19.54443739,192.11,192.1,0.063]
[1738912396182,69.45876939,192.11,192.1,0.063]
[1738912397190,19.54443739,192.11,192.1,0.063]
[1738912397389,69.45876939,192.11,192.1,0.063]
[1738912397689,19.54443739,192.11,192.1,0.063]
[1738912399297,22.0,192.08,192.03,0.063]
[1738912399507,12.478583,192.04,192.03,0.063]
[1738912400393,17.165083,192.04,192.03,0.063]
[1738912400770,12.478583,192.05,192.03,0.063]
[1738912400965,12.478583,192.07,192.03,0.18849]
[1738912401184,12.478583,192.06,192.03,0.063]
[1738912401497,12.478583,192.04,192.03,0.063]
[1738912401788,17.165083,192.04,192.03,0.063]
[1738912404493,21.50113739,192.04,192.02,0.063]
[1738912404673,21.50113739,192.04,191.9,0.063]
[1738912404674,12.478583,191.93,191.9,0.063]
[1738912404874,49.914332,192.0,191.9,0.063]
[1738912404875,12.478583,191.92,191.9,0.063]
[1738912405072,12.478583,191.92,191.9,0.18849]
[1738912405477,12.478583,191.93,191.9,0.18849]
[1738912406691,12.478583,191.94,191.91,0.25098]
[1738912406870,12.478583,191.97,191.93,13.66282853]
[1738912407275,12.478583,191.97,191.93,20.25098]
[1738912407578,12.478583,191.95,191.9,5.39949]
[1738912407787,12.478583,191.95,191.9,0.063]
[1738912407986,12.478583,191.93,191.9,0.063]
[1738912408187,12.478583,191.93,191.9,0.31398]
[1738912408496,12.478583,191.94,191.9,5.52498]
[1738912408695,12.478583,191.95,191.9,5.52498]
[1738912409191,12.478583,191.95,191.91,0.25098]
[1738912409395,12.478583,191.96,191.93,0.12549]
[1738912409796,12.478583,191.97,191.93,0.12549]
[1738912409983,12.478583,191.96,191.93,0.12549]
[1738912411299,12.478583,191.94,191.9,0.063]
[1738912411484,12.478583,191.93,191.9,0.063]
[1738912412400,12.478583,191.92,191.9,0.063]
[1738912412998,2.38255439,191.96,191.9,0.063]
[1738912412999,12.478583,191.91,191.9,0.063]
[1738912413387,13.26043739,191.91,191.9,0.063]
[1738912414490,17.95003739,191.91,191.9,0.063]
[1738912415290,17.168183,191.91,191.9,0.063]
[1738912415592,12.478583,191.93,191.9,0.063]
[1738912415912,12.478583,191.94,191.9,0.063]
[1738912416209,12.478583,191.95,191.9,0.31398]
[1738912416595,19.55977349,191.95,191.9,0.31398]
[1738912416895,19.55977349,191.96,191.9,5.52468]
[1738912417303,19.55977349,191.95,191.9,5.52468]
[1738912417808,19.55977349,191.96,191.9,5.52468]
[1738912418105,19.55977349,191.94,191.9,5.52468]
[1738912418407,19.55977349,191.91,191.9,0.31398]
[1738912419008,19.55977349,191.92,191.9,0.31398]
[1738912419414,19.55977349,191.91,191.9,0.31398]
[1738912419604,19.55977349,191.92,191.9,0.31398]
[1738912419988,19.55977349,191.94,191.9,5.52498]
[1738912420188,19.55977349,191.95,191.9,5.52498]
[1738912420710,19.55977349,191.94,191.9,5.52498]
[1738912421104,19.55977349,191.95,191.9,5.52498]
[1738912421689,19.55977349,191.94,191.9,5.52498]
[1738912422207,19.55977349,191.93,191.9,0.31398]
[1738912422413,19.55977349,191.91,191.9,0.31398]
[1738912422710,19.55977349,191.93,191.9,0.31398]
[1738912422891,19.55977349,191.94,191.9,0.31398]
[1738912423614,19.55977349,191.93,191.9,0.31398]
[1738912423812,19.55977349,191.92,191.9,0.31398]
[1738912423992,19.55977349,191.91,191.9,0.31398]
[1738912424820,24.24937349,191.91,191.9,0.063]
[1738912425886,19.55977349,191.91,191.9,0.063]
[1738912426106,1.6619,191.94,191.9,0.31398]
[1738912426107,19.55977349,191.94,191.9,0.31398]
[1738912426305,19.55977349,191.94,191.91,0.25098]
[1738912427913,19.55977349,191.94,191.9,0.063]
[1738912428510,19.55977349,191.95,191.91,0.25098]
[1738912429822,19.55977349,191.96,191.91,5.46168]
[1738912430123,19.55977349,191.95,191.91,0.25098]
[1738912430700,19.55977349,191.96,191.91,5.46168]
[1738912430914,19.55977349,191.98,191.93,0.25098]
[1738912431501,19.55977349,191.98,191.95,0.25098]
[1738912431709,19.55977349,191.99,191.95,0.25098]
[1738912431912,19.55977349,191.98,191.95,0.25098]
[1738912432123,19.55977349,191.98,191.92,13.91380853]
[1738912432328,19.55977349,191.99,191.92,33.47358202]
[1738912432822,19.55977349,191.99,191.94,13.78831853]
[1738912433017,19.55977349,192.0,191.94,13.78831853]
[1738912434327,19.55977349,192.0,191.96,0.25098]
[1738912435724,19.55977349,192.01,191.96,5.46028]
[1738912437030,19.55977349,192.01,191.97,0.12549]
[1738912437410,19.55977349,192.01,191.98,0.25098]
[1738912438629,19.55977349,192.0,191.98,0.25098]
[1738912439026,19.55977349,191.99,191.93,5.2102]
[1738912439534,19.55977349,191.99,191.94,13.91380853]
[1738912440110,19.55977349,191.99,191.96,0.25098]
[1738912440310,19.55977349,192.0,191.96,0.25098]
[1738912440624,19.55977349,192.01,191.97,0.12549]
[1738912440938,19.58977349,192.02,191.97,0.12549]
[1738912441728,19.58977349,192.02,191.98,0.25098]
[1738912441729,0.03,192.02,191.98,0.25098]
[1738912441939,0.03,192.02,192.0,0.25098]
[1738912442233,0.03,192.02,192.0,13.66282853]
[1738912443031,0.03,192.02,192.0,0.25098]
[1738912443531,0.03,192.02,192.01,40.06173349]
[1738912443849,0.03,192.02,192.01,58.68158202]
[1738912444545,0.03,192.02,192.01,57.28158202]
[1738912446650,19.58977349,192.02,191.98,0.78102027]
[1738912446815,19.55977349,191.99,191.91,5.2107]
[1738912447016,0.78185439,192.01,191.9,5.274]
[1738912447215,1.78185439,192.01,191.9,0.063]
[1738912447514,0.78185439,192.01,191.9,0.063]
[1738912447713,19.55977349,191.94,191.9,0.063]
[1738912449231,25.03052788,191.94,191.9,0.063]
[1738912449430,19.55977349,191.93,191.9,0.063]
[1738912450311,19.55977349,191.93,191.9,20.063]
[1738912450541,19.55977349,191.93,191.9,0.063]
[1738912450863,19.55977349,191.91,191.9,0.063]
[1738912451557,20.34162788,191.91,191.9,0.063]
[1738912452440,25.03122788,191.91,191.9,0.063]
[1738912452739,25.15671788,191.91,191.9,0.063]
[1738912452938,25.03122788,191.91,191.9,0.063]
[1738912454038,19.55977349,191.91,191.9,0.063]
[1738912454447,19.55977349,191.93,191.9,0.063]
[1738912456144,21.99882788,191.99,191.94,0.25098]
[1738912456344,19.55977349,191.99,191.94,0.25098]
[1738912456552,19.55977349,192.01,191.95,20.0]
[1738912456740,19.55977349,192.01,191.96,0.25098]
[1738912456943,19.55977349,192.01,191.96,20.25098]
[1738912457352,19.55977349,191.99,191.94,0.25098]
[1738912457656,19.55977349,191.99,191.96,20.0]
[1738912457854,19.55977349,192.01,191.97,5.46008]
[1738912461363,19.55977349,192.01,191.97,5.2091]
[1738912461566,19.55977349,191.99,191.91,5.2107]
[1738912461743,19.55977349,191.96,191.91,5.2107]
[1738912462065,19.55977349,191.96,191.92,0.25098]
[1738912462653,19.55977349,191.96,191.92,25.46138]
[1738912465344,19.55977349,191.98,191.92,25.46138]
[1738912465562,19.55977349,191.97,191.92,25.46138]
[1738912466561,19.55977349,191.98,191.92,25.46138]
[1738912466762,19.55977349,191.99,191.92,45.02115349]
[1738912466949,19.55977349,191.99,191.92,58.04735349]
[1738912467341,19.55977349,192.0,191.93,19.55977349]
[1738912467967,19.55977349,191.99,191.93,5.2102]
[1738912469568,19.55977349,192.0,191.93,24.76997349]
[1738912470270,20.37162788,192.01,191.93,24.76997349]
[1738912470468,0.03,192.01,191.94,19.81075349]
[1738912470772,0.03,192.01,191.96,0.25098]
[1738912472277,0.03,192.01,191.96,5.46008]
[1738912472957,19.58977349,192.01,191.93,24.76997349]
[1738912473265,19.55977349,191.99,191.96,20.0]
[1738912473472,0.03,192.01,191.96,20.0]
[1738912474469,0.03,192.01,191.97,5.45998]
[1738912476271,0.03,192.01,191.97,25.01975349]
[1738912476568,0.03,192.01,192.0,20.0]
[1738912476769,0.03,192.01,192.0,20.25098]
[1738912477561,0.03,192.01,192.0,33.66282853]
[1738912478168,0.03,192.01,192.0,38.87112853]
[1738912478656,0.03,192.01,192.0,38.99661853]
[1738912486099,0.03,192.01,192.0,25.45928]
[1738912486289,0.03,192.01,191.97,5.2091]
[1738912486458,0.03,192.01,191.96,0.063]
[1738912486664,19.58977349,192.01,191.98,20.0]
[1738912487684,19.58977349,192.01,191.96,25.2723]
[1738912487864,0.03,192.01,191.97,0.25098]
[1738912488184,0.03,192.01,191.98,25.2088]
[1738912492478,0.03,192.01,191.99,0.25098]
[1738912493403,0.03,192.01,192.0,5.45928]
[1738912498197,0.03,192.01,191.96,19.62277349]
[1738912498403,20.37162788,192.01,191.96,0.063]
[1738912498577,0.81185439,192.01,192.0,0.063]
[1738912499405,26.61382788,192.01,192.0,0.063]
[1738912499984,21.14477349,192.01,192.0,0.063]
[1738912500270,1.585,192.01,192.0,0.063]
[1738912500491,0.03,192.01,192.0,0.063]
[1738912501096,0.03,192.01,192.0,20.063]
[1738912501377,0.03,192.01,192.0,0.063]
[1738912502102,0.03,192.01,192.0,20.31398]
[1738912502908,0.03,192.01,192.0,20.063]
[1738912503201,0.03,192.01,192.0,0.063]
[1738912505889,0.03,192.01,192.0,20.31398]
[1738912506091,0.03,192.01,192.0,33.72582853]
[1738912507403,0.03,192.01,192.0,38.93412853]
[1738912508495,0.03,192.01,192.0,39.18510853]
[1738912509284,21.08767349,192.17,192.09,0.25098]
[1738912509604,1.5279,192.17,192.13,20.25098]
[1738912510012,19.55977349,192.14,192.07,19.55977349]
[1738912510307,19.55977349,192.14,192.1,20.25098]
[1738912510597,1.5279,192.17,192.12,0.25098]
[1738912510806,1.5279,192.17,192.14,20.0]
[1738912511312,6.1495,192.2,192.15,0.25098]
[1738912511484,25.70927349,192.2,192.15,0.25098]
[1738912511791,19.55977349,192.19,192.15,0.25098]
[1738912512195,19.55977349,192.18,192.14,20.0]
[1738912512384,19.55977349,192.15,192.08,24.76567349]
[1738912512583,19.55977349,192.15,192.09,13.66282853]
[1738912512906,19.55977349,192.15,192.09,13.41184853]
[1738912513079,0.0001,192.16,192.1,0.25098]
[1738912513283,0.0001,192.16,192.12,20.0]
[1738912513607,19.55977349,192.14,192.07,4.14]
[1738912513786,19.55977349,192.14,192.1,20.25098]
[1738912513985,19.4899286,192.14,192.1,20.25098]
[1738912514307,24.24357349,192.15,192.1,20.25098]
[1738912515402,19.55987349,192.16,192.11,20.0]
[1738912515583,24.24347349,192.16,192.11,20.0]
[1738912515985,19.55977349,192.12,192.04,19.55977349]
[1738912516211,19.55977349,192.09,192.02,23.69977349]
[1738912516706,19.55977349,192.09,192.06,0.25098]
[1738912517006,19.55977349,192.1,192.06,0.25098]
[1738912517310,19.55977349,192.07,192.0,0.063]
[1738912517515,19.55977349,192.06,192.0,0.063]
[1738912517729,24.24567349,192.07,192.03,20.25098]
[1738912518204,19.55977349,192.08,192.03,20.25098]
[1738912518412,19.55977349,192.08,192.04,20.0]
[1738912518610,19.55977349,192.1,192.04,0.12549]
[1738912518995,19.55977349,192.1,192.04,13.66282853]
[1738912519191,82.83684313,192.11,192.04,33.22260202]
[1738912519406,19.55977349,192.1,192.04,13.66282853]
[1738912519818,19.55977349,192.1,192.06,20.0]
[1738912521311,24.24487349,192.1,192.06,20.0]
[1738912521484,19.55977349,192.09,192.05,20.0]
[1738912521897,19.55977349,192.09,192.06,20.25098]
[1738912522102,24.24487349,192.1,192.06,20.25098]
[1738912522889,19.55977349,192.1,192.06,20.25098]
[1738912523089,19.55977349,192.1,192.06,0.25098]
[1738912523313,87.52164313,192.11,192.06,0.25098]
[1738912524206,82.83684313,192.11,192.07,20.0]
[1738912524407,63.27706964,192.11,192.07,20.0]
[1738912524612,1.6411,192.13,192.09,20.0]
[1738912524803,19.58977349,192.14,192.08,0.25098]
[1738912525110,0.03,192.14,192.13,20.25098]
[1738912525410,0.03,192.14,192.13,53.22260202]
[1738912526516,0.03,192.14,192.13,58.55289202]
[1738912529327,0.03,192.14,192.13,33.66282853]
[1738912530517,0.03,192.14,192.13,0.25098]
[1738912531101,0.03,192.14,192.13,20.25098]
[1738912533621,0.03,192.14,192.13,38.86762853]
[1738912533827,0.03,192.14,192.13,58.42740202]
[1738912534026,0.03,192.14,192.13,58.55289202]
[1738912534700,0.03,192.14,192.13,38.99311853]
[1738912536122,0.03,192.14,192.13,58.55289202]
[1738912536314,0.03,192.14,192.13,33.66282853]
[1738912536497,0.03,192.14,192.13,20.25098]
[1738912537822,0.03,192.14,192.09,5.2687]
[1738912538008,0.03,192.14,192.09,0.063]
[1738912538210,19.55977349,192.11,192.09,0.063]
[1738912538440,19.55977349,192.1,192.09,0.063]
[1738912538806,0.81185439,192.14,192.09,0.063]
[1738912538807,19.55977349,192.11,192.09,0.063]
[1738912539008,0.03,192.14,192.09,0.063]
[1738912539207,0.03,192.14,192.09,5.2688]
[1738912539727,0.03,192.14,192.13,33.66282853]
[1738912539935,0.03,192.14,192.13,58.42740202]
[1738912540118,0.03,192.14,192.13,58.55289202]
[1738912540714,0.03,192.14,192.13,58.67838202]
[1738912540909,0.03,192.14,192.13,59.67838202]
[1738912541117,0.0001,192.16,192.14,14.91380853]
[1738912541315,0.0001,192.16,192.15,39.373928]
[1738912542439,0.0001,192.16,192.15,44.578128]
[1738912544729,0.0001,192.16,192.15,45.8516276]
[1738912547839,0.03,192.25,192.22,0.50196]
[1738912548137,0.03,192.36,192.31,0.25098]
[1738912548356,0.03,192.36,192.32,20.0]
[1738912548642,0.03,192.36,192.33,13.66282853]
[1738912548819,21.13027349,192.38,192.33,13.66282853]
[1738912549220,19.55977349,192.39,192.33,13.66282853]
[1738912549438,19.55977349,192.4,192.33,13.66282853]
[1738912549763,19.55977349,192.39,192.33,13.66282853]
[1738912550424,19.55977349,192.38,192.33,13.66282853]
[1738912551345,19.55977349,192.38,192.36,20.0]
[1738912552349,19.55977349,192.38,192.33,13.66282853]
[1738912553438,19.55977349,192.38,192.32,13.41184853]
[1738912553625,24.23797349,192.38,192.32,13.41184853]
[1738912553937,24.23797349,192.38,192.33,0.25098]
[1738912554148,19.55977349,192.39,192.33,0.25098]
[1738912555269,19.55977349,192.38,192.33,0.25098]
[1738912556146,19.55977349,192.34,192.32,0.12549]
[1738912556645,19.55977349,192.33,192.27,4.24549]
[1738912556861,19.55977349,192.32,192.27,4.12]
[1738912557157,19.55977349,192.33,192.3,0.12549]
[1738912557376,24.23927349,192.33,192.3,0.12549]
[1738912558038,19.55977349,192.33,192.3,0.25098]
[1738912558242,19.55977349,192.34,192.3,0.25098]
[1738912558441,19.55977349,192.36,192.32,13.66282853]
[1738912558669,19.55977349,192.37,192.32,13.66282853]
[1738912558842,0.03,192.33,192.32,13.66282853]
[1738912559845,0.03,192.33,192.32,58.42220202]
[1738912560163,0.03,192.33,192.32,38.86242853]
[1738912560344,0.03,192.33,192.32,0.25098]
[1738912562843,0.03,192.33,192.32,18.86242853]
[1738912563264,0.03,192.33,192.32,38.67318202]
[1738912563568,19.55977349,192.42,192.36,13.66282853]
[1738912563941,1.6345,192.44,192.36,33.22260202]
[1738912564171,1.6345,192.44,192.42,0.25098]
[1738912564361,19.55977349,192.47,192.42,0.25098]
[1738912564963,19.55977349,192.47,192.42,5.44778]
[1738912565894,19.55977349,192.48,192.42,5.44778]
[1738912566691,19.55977349,192.48,192.42,5.32229]
[1738912568157,6.1394,192.49,192.43,5.32209]
[1738912568158,25.69917349,192.49,192.43,5.32209]
[1738912568516,19.55977349,192.49,192.44,0.12549]
[1738912568662,1.512,192.5,192.44,0.12549]
[1738912568663,21.07177349,192.5,192.44,0.12549]
[1738912568993,19.55977349,192.5,192.45,0.12549]
[1738912569295,19.55977349,192.51,192.45,0.12549]
[1738912570289,19.55977349,192.51,192.46,5.1958]
[1738912570674,19.55977349,192.51,192.47,0.25098]
[1738912570983,0.03,192.49,192.47,0.25098]
[1738912571381,0.03,192.49,192.45,0.12549]
[1738912571592,19.58977349,192.49,192.45,5.32159]
[1738912571767,19.58977349,192.49,192.46,0.12549]
[1738912572174,0.03,192.49,192.46,0.12549]
[1738912574994,19.55977349,192.47,192.4,19.55977349]
[1738912575196,19.55977349,192.45,192.4,4.12]
[1738912576299,19.55977349,192.45,192.41,20.25098]
[1738912576527,19.55977349,192.45,192.39,13.41184853]
[1738912576528,19.55977349,192.42,192.34,19.55977349]
[1738912576713,19.55977349,192.41,192.35,4.12]
[1738912577006,19.55977349,192.41,192.37,20.0]
[1738912577372,19.55977349,192.41,192.35,4.12]
[1738912577573,19.55977349,192.41,192.36,0.12549]
[1738912577774,19.55977349,192.42,192.36,0.25098]
[1738912578386,19.55977349,192.41,192.37,20.0]
[1738912579082,19.55977349,192.4,192.36,20.0]
[1738912579610,19.55977349,192.41,192.37,20.0]
[1738912579902,24.23707349,192.42,192.37,20.0]
[1738912580285,19.55977349,192.42,192.37,20.0]
[1738912580600,24.23677349,192.43,192.37,0.12549]
[1738912580790,19.55977349,192.42,192.38,20.0]
[1738912581516,19.55977349,192.4,192.35,4.12]
[1738912582101,19.55977349,192.4,192.36,20.12549]
[1738912582493,24.23697349,192.42,192.36,0.12549]
[1738912583385,19.55977349,192.41,192.36,0.12549]
[1738912583587,24.23737349,192.41,192.36,0.12549]
[1738912583789,0.81185439,192.45,192.36,0.25098]
[1738912583790,19.55977349,192.42,192.36,0.25098]
[1738912584072,19.55977349,192.41,192.36,0.12549]
[1738912584277,19.55977349,192.39,192.35,4.12]
[1738912584489,19.55977349,192.38,192.33,13.47484853]
[1738912584691,19.55977349,192.39,192.33,0.063]
[1738912584904,19.55977349,192.37,192.33,0.063]
[1738912585085,19.55977349,192.35,192.33,0.063]
[1738912585596,24.23877349,192.35,192.33,0.063]
[1738912585798,19.55977349,192.34,192.33,0.063]
[1738912586693,24.23877349,192.35,192.33,0.063]
[1738912586894,19.55977349,192.35,192.33,0.063]
[1738912587099,19.55977349,192.37,192.33,20.18849]
[1738912587302,19.55977349,192.39,192.34,0.12549]